[Event "Open Nuevo Centro. Jornada 1"]
[Site "Chess.com"]
[Date "2020.06.19"]
[Round "4"]
[White "Rodriguez Rodriguez, Joan David "]
[Black "Lloret Ramis, Juan Jos�"]
[Result "0-1"]
[WhiteElo "1627"]
[BlackElo "1977"]
[TimeControl "180+2"]
[EndTime "11:15:03 PDT"]
[Termination "Victoria de Amiplim por abandono"]

1. d4 {[%clk 0:03:01.9]} 1... d5 {[%clk 0:03:00]} 2. c4 {[%clk 0:03:03.1]} 2...
e6 {[%clk 0:03:01]} 3. Nc3 {[%clk 0:03:04.3]} 3... Nf6 {[%clk 0:03:02.1]} 4.
cxd5 {[%clk 0:03:05.6]} 4... exd5 {[%clk 0:03:03.2]} 5. Bg5 {[%clk 0:03:07.1]}
5... Nbd7 {[%clk 0:03:04]} 6. e3 {[%clk 0:03:07.2]} 6... c6 {[%clk 0:03:05.3]}
7. Bd3 {[%clk 0:03:06.3]} 7... Be7 {[%clk 0:03:06.7]} 8. Nf3 {[%clk 0:03:06]}
8... Nh5 {[%clk 0:03:08]} 9. Bxe7 {[%clk 0:03:04.9]} 9... Qxe7 {[%clk
0:03:09.4]} 10. O-O {[%clk 0:03:03.8]} 10... O-O {[%clk 0:03:07.2]} 11. h4
{[%clk 0:02:54.2]} 11... g6 {[%clk 0:02:58]} 12. Re1 {[%clk 0:02:42.4]} 12...
Ndf6 {[%clk 0:02:57.8]} 13. e4 {[%clk 0:02:38.4]} 13... dxe4 {[%clk 0:02:54.4]}
14. Bxe4 {[%clk 0:02:35.8]} 14... Qd6 {[%clk 0:02:25.8]} 15. Qd2 {[%clk
0:02:08]} 15... Ng7 {[%clk 0:02:12.9]} 16. Qg5 {[%clk 0:01:41.2]} 16... Bf5
{[%clk 0:02:01.8]} 17. Bxf5 {[%clk 0:01:33.8]} 17... Nxf5 {[%clk 0:02:02.1]} 18.
Rad1 {[%clk 0:01:29.4]} 18... Rfe8 {[%clk 0:02:00.5]} 19. Rxe8+ {[%clk 0:01:06]}
19... Rxe8 {[%clk 0:02:00.1]} 20. Qd2 {[%clk 0:00:48.2]} 20... h5 {[%clk
0:01:52.6]} 21. g3 {[%clk 0:00:36.2]} 21... Ne4 {[%clk 0:01:43.2]} 22. Nxe4
{[%clk 0:00:33]} 22... Rxe4 {[%clk 0:01:44.5]} 23. Kg2 {[%clk 0:00:25.5]} 23...
Qd5 {[%clk 0:01:39.9]} 24. Re1 {[%clk 0:00:18.5]} 24... Rxe1 {[%clk 0:01:29.4]}
25. Qxe1 {[%clk 0:00:20.4]} 25... Nxd4 {[%clk 0:01:28.5]} 26. Qe8+ {[%clk
0:00:19.1]} 26... Kh7 {[%clk 0:01:16.3]} 27. Qe3 {[%clk 0:00:18.9]} 27... Nxf3
{[%clk 0:01:09.6]} 28. Qxf3 {[%clk 0:00:19.4]} 28... Qxf3+ {[%clk 0:01:10.5]}
29. Kxf3 {[%clk 0:00:21.3]} 29... Kg7 {[%clk 0:01:11.5]} 30. Ke4 {[%clk
0:00:22.4]} 30... Kf6 {[%clk 0:01:12.3]} 31. a4 {[%clk 0:00:23.4]} 31... Ke6
{[%clk 0:01:13.2]} 32. b4 {[%clk 0:00:22.3]} 32... b6 {[%clk 0:01:12.6]} 33. b5
{[%clk 0:00:20.2]} 33... c5 {[%clk 0:01:12.7]} 34. f3 {[%clk 0:00:20.2]} 34...
f5+ {[%clk 0:01:12.4]} 35. Kf4 {[%clk 0:00:17.2]} 35... Kf6 {[%clk 0:01:13.3]}
36. Ke3 {[%clk 0:00:17.5]} 36... Ke5 {[%clk 0:01:14.2]} 37. f4+ {[%clk
0:00:16.6]} 37... Kd5 {[%clk 0:01:15]} 38. Kd3 {[%clk 0:00:18]} 38... c4+ {[%clk
0:01:16.1]} 39. Kc3 {[%clk 0:00:18.6]} 39... Kc5 {[%clk 0:01:17.3]} 40. Kc2
{[%clk 0:00:16.8]} 40... Kb4 {[%clk 0:01:18.2]} 41. Kb2 {[%clk 0:00:18.3]} 41...
Kxa4 {[%clk 0:01:19.2]} 42. Kc3 {[%clk 0:00:20.2]} 42... Kxb5 {[%clk 0:01:19.5]}
43. Kd4 {[%clk 0:00:21.3]} 43... Kb4 {[%clk 0:01:19.8]} 44. Ke5 {[%clk
0:00:23.2]} 44... c3 {[%clk 0:01:21.1]} 45. Kf6 {[%clk 0:00:25.1]} 45... c2
{[%clk 0:01:22.7]} 46. Kxg6 {[%clk 0:00:27]} 46... c1=Q {[%clk 0:01:23.9]} 47.
Kxh5 {[%clk 0:00:28.9]} 47... Qd1+ {[%clk 0:01:19]} 48. Kg5 {[%clk 0:00:30.8]}
48... Qg4+ {[%clk 0:01:19.6]} 0

[Event "Open Nuevo Centro. Jornada 1"]
[Site "Chess.com"]
[Date "2020.06.19"]
[Round "4"]
[White "Donate Moreno, Silvia"]
[Black "Gimenez Sanchis, Jose Antonio"]
[Result "1-0"]
[WhiteElo "1780"]
[BlackElo "1436"]
[TimeControl "180+2"]
[EndTime "11:15:41 PDT"]
[Termination "Victoria de 2camarones por tiempo"]

1. e4 {[%clk 0:03:01.9]} 1... c6 {[%clk 0:02:59.7]} 2. d4 {[%clk 0:03:02.2]}
2... d5 {[%clk 0:02:58.9]} 3. exd5 {[%clk 0:03:03.3]} 3... cxd5 {[%clk
0:02:59.9]} 4. Bd3 {[%clk 0:03:04.6]} 4... Nf6 {[%clk 0:02:59.9]} 5. c3 {[%clk
0:03:04.3]} 5... Nc6 {[%clk 0:03:01]} 6. Bf4 {[%clk 0:03:04.9]} 6... e6 {[%clk
0:03:01.2]} 7. Nf3 {[%clk 0:03:05.4]} 7... Bd6 {[%clk 0:03:01.4]} 8. Ne5 {[%clk
0:03:01.5]} 8... O-O {[%clk 0:03:00.8]} 9. Bg3 {[%clk 0:02:59.8]} 9... Qc7
{[%clk 0:03:01.9]} 10. f4 {[%clk 0:02:59.1]} 10... a6 {[%clk 0:02:57]} 11. O-O
{[%clk 0:02:59.3]} 11... Nd7 {[%clk 0:02:56.7]} 12. Nd2 {[%clk 0:02:56.6]} 12...
f5 {[%clk 0:02:50]} 13. Ndf3 {[%clk 0:02:47]} 13... Be7 {[%clk 0:02:46.9]} 14.
Qe1 {[%clk 0:02:37.8]} 14... Nf6 {[%clk 0:02:43.1]} 15. Bh4 {[%clk 0:02:34.6]}
15... Qd8 {[%clk 0:02:33.3]} 16. Nxc6 {[%clk 0:02:25.2]} 16... bxc6 {[%clk
0:02:32.9]} 17. Ne5 {[%clk 0:02:26.1]} 17... Bb7 {[%clk 0:02:25]} 18. b4 {[%clk
0:02:21.5]} 18... Ne4 {[%clk 0:02:25.6]} 19. Bxe7 {[%clk 0:02:21]} 19... Qxe7
{[%clk 0:02:25.9]} 20. Be2 {[%clk 0:02:13.1]} 20... Qd6 {[%clk 0:02:04.1]} 21.
Nd3 {[%clk 0:02:06.4]} 21... Rf6 {[%clk 0:01:52.3]} 22. Bf3 {[%clk 0:02:01.2]}
22... Rg6 {[%clk 0:01:43.8]} 23. Bxe4 {[%clk 0:02:01.5]} 23... dxe4 {[%clk
0:01:43.2]} 24. Nc5 {[%clk 0:02:01.7]} 24... Bc8 {[%clk 0:01:41.1]} 25. Qe2
{[%clk 0:01:54.1]} 25... Rg4 {[%clk 0:01:28.7]} 26. g3 {[%clk 0:01:49.3]} 26...
h5 {[%clk 0:01:26.7]} 27. Rf2 {[%clk 0:01:37.4]} 27... h4 {[%clk 0:01:13.6]} 28.
Rg2 {[%clk 0:01:31.6]} 28... hxg3 {[%clk 0:01:11]} 29. hxg3 {[%clk 0:01:31.7]}
29... Ra7 {[%clk 0:01:01.1]} 30. Kf2 {[%clk 0:01:31.9]} 30... Kf7 {[%clk
0:01:00.1]} 31. Rh1 {[%clk 0:01:32.6]} 31... Qe7 {[%clk 0:00:49.4]} 32. Nxe4
{[%clk 0:01:28.8]} 32... Bd7 {[%clk 0:00:30.8]} 33. Nc5 {[%clk 0:01:29.1]} 33...
Qd6 {[%clk 0:00:14.6]} 34. Nd3 {[%clk 0:01:15.6]} 34... Qd5 {[%clk 0:00:11.5]}
35. Ne5+ {[%clk 0:01:15.1]} 35... Ke7 {[%clk 0:00:10.3]} 36. Nxg4 {[%clk
0:01:15.7]} 36... fxg4 {[%clk 0:00:11]} 37. Rh7 {[%clk 0:01:02.2]} 37... Kf6
{[%clk 0:00:09.3]} 38. Kg1 {[%clk 0:01:00.8]} 38... Be8 {[%clk 0:00:10.2]} 39.
Qe5+ {[%clk 0:00:59.4]} 39... Qxe5 {[%clk 0:00:10.2]} 40. fxe5+ {[%clk
0:00:57.5]} 40... Kg6 {[%clk 0:00:08.5]} 41. Rh8 {[%clk 0:00:56.4]} 41... Bf7
{[%clk 0:00:08.9]} 42. Rc8 {[%clk 0:00:53.1]} 42... Kg5 {[%clk 0:00:06.5]} 43.
Rxc6 {[%clk 0:00:51.8]} 1

[Event "Open Nuevo Centro. Jornada 1"]
[Site "Chess.com"]
[Date "2020.06.19"]
[Round "4"]
[White "Juan Alos, Sergio"]
[Black "Hern�ndez Tom�s, Efr�n"]
[Result "1-0"]
[WhiteElo "1267"]
[BlackElo "893"]
[TimeControl "180+2"]
[EndTime "11:15:54 PDT"]
[Termination "Victoria de SergioJuanAlos por jaque mate"]

1. d4 {[%clk 0:01:57.7]} 1... e6 {[%clk 0:02:59]} 2. Nf3 {[%clk 0:01:59]} 2...
d5 {[%clk 0:02:59.6]} 3. e3 {[%clk 0:01:59.8]} 3... Nc6 {[%clk 0:03:00.2]} 4. c3
{[%clk 0:02:00.8]} 4... Nf6 {[%clk 0:03:01]} 5. Bd3 {[%clk 0:02:01.8]} 5... Bd7
{[%clk 0:03:00.9]} 6. Nbd2 {[%clk 0:02:02.4]} 6... Be7 {[%clk 0:02:58.7]} 7. O-O
{[%clk 0:02:03.9]} 7... O-O {[%clk 0:02:58.7]} 8. Qe2 {[%clk 0:02:05.1]} 8... h6
{[%clk 0:02:58.4]} 9. e4 {[%clk 0:02:06.3]} 9... dxe4 {[%clk 0:02:58.2]} 10.
Nxe4 {[%clk 0:02:08.2]} 10... Nxe4 {[%clk 0:02:57.2]} 11. Bxe4 {[%clk
0:02:10.1]} 11... a6 {[%clk 0:02:54.5]} 12. Bf4 {[%clk 0:02:08.5]} 12... f5
{[%clk 0:02:41]} 13. Bd3 {[%clk 0:02:03.7]} 13... b6 {[%clk 0:02:21.1]} 14. Ne5
{[%clk 0:02:00.4]} 14... Nxe5 {[%clk 0:02:20.6]} 15. Bxe5 {[%clk 0:02:02.3]}
15... Bf6 {[%clk 0:02:18.7]} 16. Bxf6 {[%clk 0:02:02.3]} 16... Qxf6 {[%clk
0:02:18.4]} 17. f4 {[%clk 0:01:58.3]} 17... Bc6 {[%clk 0:02:16.2]} 18. Qe5
{[%clk 0:01:57.8]} 18... Qg6 {[%clk 0:02:12.7]} 19. g3 {[%clk 0:01:56]} 19...
Rac8 {[%clk 0:02:00.1]} 20. Bxa6 {[%clk 0:01:52.2]} 20... Ra8 {[%clk 0:01:57.3]}
21. Bc4 {[%clk 0:01:52.9]} 21... Rfe8 {[%clk 0:01:46.8]} 22. Qxc7 {[%clk
0:01:49.9]} 22... Bg2 {[%clk 0:01:29.3]} 23. Kxg2 {[%clk 0:01:47.6]} 23... Rac8
{[%clk 0:01:26.9]} 24. Bxe6+ {[%clk 0:01:35.1]} 24... Qxe6 {[%clk 0:01:23.1]}
25. Qe5 {[%clk 0:01:36]} 25... Qxe5 {[%clk 0:01:23.7]} 26. fxe5 {[%clk
0:01:37.9]} 26... g6 {[%clk 0:01:21.9]} 27. a4 {[%clk 0:01:29.1]} 27... Ra8
{[%clk 0:01:16.6]} 28. Ra3 {[%clk 0:01:27.7]} 28... Reb8 {[%clk 0:01:13.1]} 29.
Rfa1 {[%clk 0:01:26.2]} 29... b5 {[%clk 0:01:12.2]} 30. axb5 {[%clk 0:01:26.1]}
30... Rxa3 {[%clk 0:01:12.2]} 31. Rxa3 {[%clk 0:01:27.2]} 31... Rxb5 {[%clk
0:01:13.7]} 32. b3 {[%clk 0:01:28.3]} 32... Kf7 {[%clk 0:01:10.9]} 33. c4 {[%clk
0:01:28.2]} 33... Rb6 {[%clk 0:01:10.2]} 34. d5 {[%clk 0:01:27.8]} 34... Ke7
{[%clk 0:01:09.9]} 35. h4 {[%clk 0:01:24.7]} 35... g5 {[%clk 0:01:07.9]} 36.
hxg5 {[%clk 0:01:25.3]} 36... hxg5 {[%clk 0:01:07.3]} 37. Kf3 {[%clk 0:01:26.7]}
37... Rh6 {[%clk 0:00:56.1]} 38. Ra7+ {[%clk 0:01:22]} 38... Ke8 {[%clk
0:00:54.4]} 39. e6 {[%clk 0:01:22.9]} 39... Kd8 {[%clk 0:00:45.1]} 40. e7+
{[%clk 0:01:09.7]} 40... Ke8 {[%clk 0:00:45.4]} 41. g4 {[%clk 0:00:56.9]} 41...
Rh3+ {[%clk 0:00:35.7]} 42. Kg2 {[%clk 0:00:57.3]} 42... Rxb3 {[%clk 0:00:30.6]}
43. gxf5 {[%clk 0:00:57.7]} 43... g4 {[%clk 0:00:28.2]} 44. Rc7 {[%clk
0:00:55.8]} 44... Rb2+ {[%clk 0:00:26.3]} 45. Kg3 {[%clk 0:00:55.8]} 45... Re2
{[%clk 0:00:24.1]} 46. Kxg4 {[%clk 0:00:55.3]} 46... Rxe7 {[%clk 0:00:25.4]} 47.
Rxe7+ {[%clk 0:00:54.7]} 47... Kxe7 {[%clk 0:00:25.4]} 48. c5 {[%clk 0:00:56.6]}
48... Kd7 {[%clk 0:00:25.8]} 49. f6 {[%clk 0:00:56.8]} 49... Ke8 {[%clk
0:00:27]} 50. c6 {[%clk 0:00:56.5]} 50... Kd8 {[%clk 0:00:25.9]} 51. d6 {[%clk
0:00:57.2]} 51... Ke8 {[%clk 0:00:26.5]} 52. Kg5 {[%clk 0:00:57]} 52... Kd8
{[%clk 0:00:25.7]} 53. f7 {[%clk 0:00:57.8]} 53... Kc8 {[%clk 0:00:23]} 54.
f8=Q# {[%clk 0:00:58.2]} 1

[Event "Open Nuevo Centro. Jornada 1"]
[Site "Chess.com"]
[Date "2020.06.19"]
[Round "4"]
[White "M�ndez Gim�nez , N�stor Emmanuel"]
[Black "M�s Ripoll, Vicente"]
[Result "0-1"]
[WhiteElo "1131"]
[BlackElo "1161"]
[TimeControl "180+2"]
[EndTime "11:16:00 PDT"]
[Termination "Victoria de menut por jaque mate"]

1. e4 {[%clk 0:03:01.9]} 1... c5 {[%clk 0:03:00.6]} 2. Nf3 {[%clk 0:03:02.3]}
2... e6 {[%clk 0:03:01.1]} 3. d4 {[%clk 0:03:02.9]} 3... cxd4 {[%clk 0:03:01.6]}
4. Qd3 {[%clk 0:03:03.3]} 4... h6 {[%clk 0:02:57.3]} 5. b3 {[%clk 0:03:02.3]}
5... Nc6 {[%clk 0:02:57.4]} 6. Nxd4 {[%clk 0:03:02.5]} 6... Qf6 {[%clk
0:02:53.2]} 7. Bb2 {[%clk 0:03:00.3]} 7... Nb4 {[%clk 0:02:31.5]} 8. Qc3 {[%clk
0:02:56.3]} 8... Bc5 {[%clk 0:02:17.8]} 9. g3 {[%clk 0:02:44.7]} 9... Bxd4
{[%clk 0:02:01.5]} 10. Qxb4 {[%clk 0:02:44.8]} 10... Bxb2 {[%clk 0:01:56.1]} 11.
Bg2 {[%clk 0:02:43.1]} 11... Bxa1 {[%clk 0:01:52.4]} 12. c3 {[%clk 0:02:43.7]}
12... Ne7 {[%clk 0:01:46.3]} 13. O-O {[%clk 0:02:42.4]} 13... Nc6 {[%clk
0:01:41]} 14. Qa3 {[%clk 0:02:40.4]} 14... Bxc3 {[%clk 0:01:39.7]} 15. Nxc3
{[%clk 0:02:40.7]} 15... Qxc3 {[%clk 0:01:40.3]} 16. Rc1 {[%clk 0:02:41.4]}
16... Qb4 {[%clk 0:01:30.2]} 17. Qb2 {[%clk 0:02:30.2]} 17... O-O {[%clk
0:01:29.3]} 18. e5 {[%clk 0:02:26.4]} 18... Qd4 {[%clk 0:01:23.9]} 19. Qa3
{[%clk 0:02:23.3]} 19... Qxe5 {[%clk 0:01:18.9]} 20. Bxc6 {[%clk 0:02:22.8]}
20... bxc6 {[%clk 0:01:14.6]} 21. Qb4 {[%clk 0:02:23.1]} 21... Qg5 {[%clk
0:01:05.7]} 22. Re1 {[%clk 0:02:18.8]} 22... Ba6 {[%clk 0:00:57.1]} 23. Qa3
{[%clk 0:02:15.9]} 23... Bb5 {[%clk 0:00:51.7]} 24. Qb4 {[%clk 0:02:14.9]} 24...
a5 {[%clk 0:00:50.4]} 25. Qc3 {[%clk 0:02:14.7]} 25... d5 {[%clk 0:00:48.4]} 26.
a4 {[%clk 0:02:14.5]} 26... Ba6 {[%clk 0:00:41]} 27. Qxc6 {[%clk 0:02:14.1]}
27... Rfc8 {[%clk 0:00:37]} 28. Qb6 {[%clk 0:02:06.9]} 28... Rc1 {[%clk
0:00:35.1]} 29. Rxc1 {[%clk 0:02:06.8]} 29... Qxc1+ {[%clk 0:00:35.3]} 30. Kg2
{[%clk 0:02:07.5]} 30... Rc8 {[%clk 0:00:32.9]} 31. Qxa6 {[%clk 0:02:05.9]}
31... Rc2 {[%clk 0:00:33]} 32. Qa8+ {[%clk 0:01:59.9]} 32... Kh7 {[%clk
0:00:33.2]} 33. Qa7 {[%clk 0:01:59.1]} 33... Kg6 {[%clk 0:00:30.2]} 34. h4
{[%clk 0:01:59.2]} 34... Qd2 {[%clk 0:00:29.8]} 35. h5+ {[%clk 0:01:59.4]} 35...
Kf6 {[%clk 0:00:27.9]} 36. Kg1 {[%clk 0:01:54]} 36... Rb2 {[%clk 0:00:26.6]} 37.
b4 {[%clk 0:01:49.4]} 37... axb4 {[%clk 0:00:22.5]} 38. a5 {[%clk 0:01:49.2]}
38... Ra2 {[%clk 0:00:21.4]} 39. a6 {[%clk 0:01:37.4]} 39... Rxa6 {[%clk
0:00:21.3]} 40. Qxa6 {[%clk 0:01:36.5]} 40... Qe1+ {[%clk 0:00:21]} 41. Kg2
{[%clk 0:01:35.6]} 41... Qe4+ {[%clk 0:00:20.7]} 42. f3 {[%clk 0:01:34.5]} 42...
Qc2+ {[%clk 0:00:19.1]} 43. Kh3 {[%clk 0:01:34.8]} 43... b3 {[%clk 0:00:20.1]}
44. g4 {[%clk 0:01:35.1]} 44... b2 {[%clk 0:00:19]} 45. g5+ {[%clk 0:01:35.4]}
45... Kf5 {[%clk 0:00:17.3]} 46. Qa4 {[%clk 0:01:02.7]} 46... Qxa4 {[%clk
0:00:13]} 47. Kg3 {[%clk 0:01:01.7]} 47... b1=Q {[%clk 0:00:11.2]} 48. f4 {[%clk
0:01:02.2]} 48... Ke4 {[%clk 0:00:11.6]} 49. Kg4 {[%clk 0:01:02.1]} 49... Qg1+
{[%clk 0:00:11.7]} 50. Kh3 {[%clk 0:01:02.3]} 50... Qb3+ {[%clk 0:00:11.9]} 51.
Kh4 {[%clk 0:01:02.2]} 51... Qbg3# {[%clk 0:00:12]} 0

[Event "Open Nuevo Centro. Jornada 1"]
[Site "Chess.com"]
[Date "2020.06.19"]
[Round "4"]
[White "Granero Roca, Antonio"]
[Black "Kovacevic, Slobodan"]
[Result "1-0"]
[WhiteElo "2525"]
[BlackElo "2063"]
[TimeControl "180+2"]
[EndTime "11:16:11 PDT"]
[Termination "Victoria de Somtor por abandono"]

1. Nf3 {[%clk 0:03:01.9]} 1... c5 {[%clk 0:02:58.3]} 2. g3 {[%clk 0:03:02.5]}
2... b6 {[%clk 0:02:56.9]} 3. Bg2 {[%clk 0:03:03.2]} 3... Bb7 {[%clk 0:02:56.3]}
4. O-O {[%clk 0:03:03.9]} 4... Nf6 {[%clk 0:02:53.6]} 5. d3 {[%clk 0:03:04.7]}
5... e6 {[%clk 0:02:52.5]} 6. c4 {[%clk 0:03:05.5]} 6... Qc7 {[%clk 0:02:51]} 7.
b3 {[%clk 0:03:05.9]} 7... Be7 {[%clk 0:02:49.3]} 8. Bb2 {[%clk 0:03:06.3]} 8...
d6 {[%clk 0:02:48.7]} 9. Nc3 {[%clk 0:03:06.8]} 9... a6 {[%clk 0:02:47.1]} 10.
Rc1 {[%clk 0:03:07.1]} 10... O-O {[%clk 0:02:45.8]} 11. Re1 {[%clk 0:03:07.3]}
11... Nbd7 {[%clk 0:02:43.9]} 12. e4 {[%clk 0:03:08]} 12... Bc6 {[%clk
0:02:42.2]} 13. h3 {[%clk 0:03:06.7]} 13... b5 {[%clk 0:02:41.3]} 14. Qd2 {[%clk
0:03:06.1]} 14... b4 {[%clk 0:02:40.6]} 15. Ne2 {[%clk 0:03:04.5]} 15... a5
{[%clk 0:02:39.2]} 16. g4 {[%clk 0:02:57.2]} 16... h6 {[%clk 0:02:34.8]} 17. Ng3
{[%clk 0:02:56.6]} 17... a4 {[%clk 0:02:32]} 18. e5 {[%clk 0:02:53.1]} 18...
dxe5 {[%clk 0:02:28.3]} 19. Nxe5 {[%clk 0:02:53.9]} 19... Bxg2 {[%clk
0:02:24.8]} 20. Nxd7 {[%clk 0:02:45.9]} 20... Qxd7 {[%clk 0:02:18.6]} 21. Kxg2
{[%clk 0:02:44]} 21... axb3 {[%clk 0:02:16.8]} 22. axb3 {[%clk 0:02:44.1]} 22...
Ra2 {[%clk 0:02:15.3]} 23. Rc2 {[%clk 0:02:44.7]} 23... Rd8 {[%clk 0:02:11.1]}
24. Re3 {[%clk 0:02:36.2]} 24... Qb7+ {[%clk 0:02:07.4]} 25. Kg1 {[%clk
0:02:26.2]} 25... Nh7 {[%clk 0:02:05.8]} 26. Ne4 {[%clk 0:02:12.6]} 26... Nf8
{[%clk 0:02:02.5]} 27. Qe2 {[%clk 0:02:10.9]} 27... Ng6 {[%clk 0:02:00.1]} 28.
Qf3 {[%clk 0:01:53.3]} 28... Qd7 {[%clk 0:01:56.4]} 29. Rce2 {[%clk 0:01:45.9]}
29... Qc7 {[%clk 0:01:51.4]} 30. Qg3 {[%clk 0:01:23.8]} 30... Nf4 {[%clk
0:01:44.7]} 31. Rd2 {[%clk 0:01:17.6]} 31... Rd7 {[%clk 0:01:42.3]} 32. Rf3
{[%clk 0:01:05.7]} 32... Ng6 {[%clk 0:01:38.5]} 33. Qxc7 {[%clk 0:01:05.1]}
33... Rxc7 {[%clk 0:01:36.7]} 34. Re3 {[%clk 0:01:03.5]} 34... Nf4 {[%clk
0:01:31.3]} 35. Be5 {[%clk 0:01:00.4]} 35... Rxd2 {[%clk 0:01:24]} 36. Nxd2
{[%clk 0:01:00.8]} 36... Nxh3+ {[%clk 0:01:19.2]} 37. Rxh3 {[%clk 0:01:00.3]}
37... Ra7 {[%clk 0:01:17.3]} 38. d4 {[%clk 0:01:00.3]} 38... f6 {[%clk
0:01:13.7]} 39. Bh2 {[%clk 0:00:58.1]} 39... cxd4 {[%clk 0:01:12.8]} 40. Rd3
{[%clk 0:00:57.2]} 40... e5 {[%clk 0:01:11.6]} 41. f4 {[%clk 0:00:58.1]} 41...
Bd6 {[%clk 0:01:04.2]} 42. Ne4 {[%clk 0:00:56.2]} 42... Bc7 {[%clk 0:01:02.5]}
43. fxe5 {[%clk 0:00:57.1]} 43... fxe5 {[%clk 0:01:01.5]} 44. Kg2 {[%clk
0:00:57.8]} 44... Ra2+ {[%clk 0:00:57.4]} 45. Kh3 {[%clk 0:00:58.6]} 45... Rb2
{[%clk 0:00:53.4]} 46. Rf3 {[%clk 0:00:55.2]} 46... Re2 {[%clk 0:00:50.4]} 47.
Ng3 {[%clk 0:00:55.6]} 47... e4 {[%clk 0:00:46.9]} 48. Nxe2 {[%clk 0:00:52.8]}
48... exf3 {[%clk 0:00:42.1]} 49. Nxd4 {[%clk 0:00:48.3]} 49... f2 {[%clk
0:00:40.4]} 50. Kg2 {[%clk 0:00:47.7]} 50... Bxh2 {[%clk 0:00:37.9]} 51. Kxf2
{[%clk 0:00:47.9]} 51... Bd6 {[%clk 0:00:36.5]} 52. Kf3 {[%clk 0:00:48.2]} 52...
Kf7 {[%clk 0:00:33.6]} 53. Ke4 {[%clk 0:00:48.8]} 53... Kg6 {[%clk 0:00:32]} 54.
Nf5 {[%clk 0:00:46.2]} 54... Kf7 {[%clk 0:00:33.9]} 55. Nxd6+ {[%clk 0:00:46.9]}
1